{"text_format":"1","workbook":"xlsx","n_sheets":7,"sheets":["Lathund","Projektinformation","Förenklad klimatkalkyl","Arbetsmoment arbetsplatsen","Resultat","Resultat per materialtyp","Standardvärden"],"not_rendered":{"charts":13,"images":1,"macros":1,"external_links":0,"defined_names":2,"comments":0,"pivot_tables":11},"unopened":[],"bounds":{"document_bytes":16777216,"sheet_cells":100000,"rows_first":2000,"rows_last":500,"rows_between":2000,"halvings":0,"cell_chars":16384,"cell_head_chars":4096},"cells_cut":0,"cells_raw":0,"read":"whole","date_system":"1900"}

{"sheet":"Lathund","index":0,"n_rows":0,"n_cols":0,"rows_kept":0,"cut":false,"hidden":false,"merged":[]}

{"sheet":"Projektinformation","index":1,"n_rows":11,"n_cols":3,"rows_kept":11,"cut":false,"hidden":false,"merged":[[10,2,15,2]]}
[]
[null,"Namn projekt"]
[null,"Skede"]
[null,"Byggår",2027]
[null,"Krav minskad klimatpåverkan (%)"]
[null,"Minskad klimatpåverkan enl. Kalkyl (%)",{"$f":"'Förenklad klimatkalkyl'!Q39","v":""}]
[null,"Underlag mängder"]
[null,"Datum på underlag"]
[null,"Investeringskostnad (Mkr)"]
[null,"Prisnivå"]
[null,"Kort beskrivning av åtgärd"]

{"sheet":"Förenklad klimatkalkyl","index":2,"n_rows":39,"n_cols":19,"rows_kept":39,"cut":false,"hidden":false,"merged":[[4,17,4,18],[54,3,54,6],[4,5,4,7],[4,8,4,9],[4,11,4,14],[4,15,4,16]]}
[]
[]
[]
[null,"malldatum: 2025-10-22"]
[null,null,null,null,null,"Referenskalkyl",null,null,"Gemensamma miljökrav",null,null,"Utgångsläge entreprenad (klimatförbättrat alternativ)",null,null,null,"Skillnad klimatpåverkan %",null,"Skillnad klimatpåverkan [kg Co2-ekv]"]
["Materialtyp","Material","Tjocklek [mm] (Endast asfalt)","Mängd","Enhet","Emissionsfaktor A1-A3 [kg CO2e/kg] ","Transportavstånd [km]","Klimatpåverkan [kg CO2e]","Emissionsfaktor A1-A3 [kg CO2e/kg] ","Klimatpåverkan [kg CO2e]","Tjocklek [mm] (Endast asfalt)","Mängd","Emissionsfaktor A1-A3 [kg CO2e/kg] ","Transportavstånd [km]","Klimatpåverkan [kg CO2e]","Ref alt / gem miljökr.","Ref alt / klimatförb alt.","Ref alt / gem miljökr.","Ref alt / klimatförb alt."]
["Betong","Betong Generellt värde (C35/45 samt XD3, XS3 och XF4)",null,null,"m3",0.16400000000000001,35,{"$f":"($D$7*Standardvärden!C2*'Förenklad klimatkalkyl'!$F$7)+(Standardvärden!$D$8*'Förenklad klimatkalkyl'!$D$7*G7)","v":0},0.13200000000000001,{"$f":"($D7*Standardvärden!$C$2*'Förenklad klimatkalkyl'!$I$7)+(Standardvärden!$D$8*'Förenklad klimatkalkyl'!$D7*$G7)","v":0},null,null,null,null,{"$f":"IF(SUM(L7*M7*N7)=0,\"Fyll i värde L-N\",($L$7*Standardvärden!C2*'Förenklad klimatkalkyl'!$M$7)+(Standardvärden!$D$8*'Förenklad klimatkalkyl'!$L$7*N7))","v":"Fyll i värde L-N"},{"$f":"IFERROR(-(H7-J7)/H7,\"\")","v":""},{"$f":"IFERROR(-((H7-O7)/H7),\"\")","v":""},{"$f":"-(H7-J7)","v":0},{"$f":"IFERROR(-(H7-O7),\"\")","v":""}]
["Betong","Betong (C40/50 samt XD3)",null,null,"m3",0.161,35,{"$f":"($D$8*Standardvärden!C2*'Förenklad klimatkalkyl'!$F$8)+(Standardvärden!$D$8*'Förenklad klimatkalkyl'!$D$8*G8)","v":0},0.13200000000000001,{"$f":"($D8*Standardvärden!$C$2*'Förenklad klimatkalkyl'!$I$8)+(Standardvärden!$D$8*'Förenklad klimatkalkyl'!$D8*$G8)","v":0},null,null,null,null,{"$f":"IF(SUM(L8*M8*N8)=0,\"Fyll i värde L-N\",($L$8*Standardvärden!C2*'Förenklad klimatkalkyl'!$M$8)+(Standardvärden!$D$8*'Förenklad klimatkalkyl'!$L$8*N8))","v":"Fyll i värde L-N"},"","",{"$f":"-(H8-J8)","v":0},{"$f":"IFERROR(-(H8-O8),\"\")","v":""}]
["Betong","Betong (C32/40 samt XD2, XS2 och XF2)",null,null,"m3",0.151,35,{"$f":"($D$9*Standardvärden!C2*'Förenklad klimatkalkyl'!$F$9)+(Standardvärden!$D$8*'Förenklad klimatkalkyl'!$D$9*G9)","v":0},0.121,{"$f":"($D9*Standardvärden!$C$2*'Förenklad klimatkalkyl'!$I$9)+(Standardvärden!$D$8*'Förenklad klimatkalkyl'!$D9*$G9)","v":0},null,null,null,null,{"$f":"IF(SUM(L9*M9*N9)=0,\"Fyll i värde L-N\",($L$9*Standardvärden!C2*'Förenklad klimatkalkyl'!$M$9)+(Standardvärden!$D$8*'Förenklad klimatkalkyl'!$L$9*N9))","v":"Fyll i värde L-N"},"","",0,""]
["Anläggningssten","Smågatsten",null,null,"m",0.05,440,{"$f":"IF(E10=\"m\",($D$10*Standardvärden!C36*('Förenklad klimatkalkyl'!$F$10*0.09*0.09))+(Standardvärden!E53*('Förenklad klimatkalkyl'!$D$10*0.09*0.09)*G10),(IF(E10=\"m2\",($D$10*Standardvärden!C36*('Förenklad klimatkalkyl'!$F$10*0.09))+(Standardvärden!E53*('Förenklad klimatkalkyl'!$D$10*0.09)*G10),0)))","v":0},"saknas",{"$f":"H10","v":0},null,null,null,null,{"$f":"IF(SUM(L10*M10*N10)=0,\"Fyll i värde L-N\",IF(E10=\"m\",($L$10*Standardvärden!C36*('Förenklad klimatkalkyl'!$M$10*0.09*0.09))+(Standardvärden!E53*('Förenklad klimatkalkyl'!$L$10*0.09*0.09)*N10),(IF(E10=\"m2\",($L$10*Standardvärden!C36*('Förenklad klimatkalkyl'!$M$10*0.09))+(Standardvärden!E53*('Förenklad klimatkalkyl'!$L$10*0.09)*N10),0))))","v":"Fyll i värde L-N"},{"$f":"IFERROR(-(H10-J10)/H10,\"\")","v":""},"",0,""]
["Anläggningssten","Storgatsten",null,null,"m2",0.05,440,{"$f":"IF(E11=\"m\",($D$11*Standardvärden!C36*('Förenklad klimatkalkyl'!$F$11*0.14*0.14))+(Standardvärden!E53*('Förenklad klimatkalkyl'!$D$11*0.14*0.14)*G11),(IF(E11=\"m2\",($D$11*Standardvärden!C36*('Förenklad klimatkalkyl'!$F$11*0.14))+(Standardvärden!E53*('Förenklad klimatkalkyl'!$D$11*0.14)*G11),0)))","v":0},"saknas",{"$f":"H11","v":0},null,null,null,null,{"$f":"IF(SUM(L11*M11*N11)=0,\"Fyll i värde L-N\",IF(E11=\"m\",($L$11*Standardvärden!C36*('Förenklad klimatkalkyl'!$M$11*0.14*0.14))+(Standardvärden!E53*('Förenklad klimatkalkyl'!$L$11*0.14*0.14)*N11),(IF(E11=\"m2\",($L$11*Standardvärden!C36*('Förenklad klimatkalkyl'!$M$11*0.14))+(Standardvärden!E53*('Förenklad klimatkalkyl'!$L$11*0.14)*N11),0))))","v":"Fyll i värde L-N"},"","",0,""]
["Anläggningssten","Naturstensplattor",null,null,"m2",0.05,440,{"$f":"($D$12*Standardvärden!C36*('Förenklad klimatkalkyl'!$F$12*0.12))+(Standardvärden!E53*('Förenklad klimatkalkyl'!$D$12*0.12)*G12)","v":0},"saknas",{"$f":"H12","v":0},null,null,null,null,{"$f":"IF(SUM(L12*M12*N12)=0,\"Fyll i värde L-N\",($L$12*Standardvärden!C36*('Förenklad klimatkalkyl'!$M$12*0.12))+(Standardvärden!E53*('Förenklad klimatkalkyl'!$L$12*0.12)*N12))","v":"Fyll i värde L-N"},"","",0,""]
["Anläggningssten","Anläggningssten, generellt värde",null,null,"m3",0.05,440,{"$f":"($D$13*Standardvärden!C36*'Förenklad klimatkalkyl'!$F$13)+(Standardvärden!E53*'Förenklad klimatkalkyl'!$D$13*G13)","v":0},"saknas",{"$f":"H13","v":0},null,null,null,null,{"$f":"IF(SUM(L13*M13*N13)=0,\"Fyll i värde L-N\",($L$13*Standardvärden!C36*'Förenklad klimatkalkyl'!$M$13)+(Standardvärden!E53*'Förenklad klimatkalkyl'!$L$13*N13))","v":"Fyll i värde L-N"},"","",0,""]
["Stål","Stål, armering, slakarmering",null,null,"ton",0.52,840,{"$f":"(D14*Standardvärden!$C$11*'Förenklad klimatkalkyl'!F14)+(Standardvärden!$E$32*'Förenklad klimatkalkyl'!D14*G14)","v":0},0.52,{"$f":"(D14*Standardvärden!$C$11*'Förenklad klimatkalkyl'!I14)+(Standardvärden!$E$32*'Förenklad klimatkalkyl'!D14*G14)","v":0},null,null,null,null,{"$f":"IF(SUM(L14*M14*N14)=0,\"Fyll i värde L-N\",(L14*Standardvärden!$C$11*'Förenklad klimatkalkyl'!M14)+(Standardvärden!$E$32*'Förenklad klimatkalkyl'!L14*N14))","v":"Fyll i värde L-N"},"","",0,""]
["Stål","Stål, armering, spännarmering",null,null,"ton",1.77,840,{"$f":"(D15*Standardvärden!$C$11*'Förenklad klimatkalkyl'!F15)+(Standardvärden!$E$32*'Förenklad klimatkalkyl'!D15*G15)","v":0},"saknas",{"$f":"H15","v":0},null,null,null,null,{"$f":"IF(SUM(L15*M15*N15)=0,\"Fyll i värde L-N\",(L15*Standardvärden!$C$11*'Förenklad klimatkalkyl'!M15)+(Standardvärden!$E$32*'Förenklad klimatkalkyl'!L15*N15))","v":"Fyll i värde L-N"},"","",0,""]
["Stål","Stål, konstruktion, ej varmförzinkat",null,null,"ton",2.27,1340,{"$f":"(D16*Standardvärden!$C$11*'Förenklad klimatkalkyl'!F16)+(Standardvärden!$E$32*'Förenklad klimatkalkyl'!D16*G16)","v":0},"saknas",{"$f":"H16","v":0},null,null,null,null,{"$f":"IF(SUM(L16*M16*N16)=0,\"Fyll i värde L-N\",(L16*Standardvärden!$C$11*'Förenklad klimatkalkyl'!M16)+(Standardvärden!$E$32*'Förenklad klimatkalkyl'!L16*N16))","v":"Fyll i värde L-N"},"","",0,""]
["Stål","Stål, rostfritt",null,null,"ton",3.42,1340,{"$f":"(D17*Standardvärden!$C$11*'Förenklad klimatkalkyl'!F17)+(Standardvärden!$E$32*'Förenklad klimatkalkyl'!D17*G17)","v":0},"saknas",{"$f":"H17","v":0},null,null,null,null,{"$f":"IF(SUM(L17*M17*N17)=0,\"Fyll i värde L-N\",(L17*Standardvärden!$C$11*'Förenklad klimatkalkyl'!M17)+(Standardvärden!$E$32*'Förenklad klimatkalkyl'!L17*N17))","v":"Fyll i värde L-N"},"","",0,""]
["Asfalt","Asfalt, Abb (standardtjocklek 50 mm)",50,null,"m2",0.03,50,{"$f":"((C18/50)*$D$18*Standardvärden!$J$3*'Förenklad klimatkalkyl'!F18)+(Standardvärden!$M$8*'Förenklad klimatkalkyl'!$D$18*(C18/50)*G18)+($D$18*'Arbetsmoment arbetsplatsen'!D5*'Arbetsmoment arbetsplatsen'!O4)","v":0},2.5999999999999999E-2,{"$f":"((C18/50)*$D18*Standardvärden!$J$3*'Förenklad klimatkalkyl'!I18)+(Standardvärden!$M$8*(C18/50)*'Förenklad klimatkalkyl'!$D18*G18)+($D18*'Arbetsmoment arbetsplatsen'!D5*'Arbetsmoment arbetsplatsen'!O11)","v":0},null,null,null,null,{"$f":"IF(SUM(K18*L18*M18*N18)=0,\"Fyll i värde K-N\",((K18/50)*$L$18*Standardvärden!$J$3*'Förenklad klimatkalkyl'!M18)+(Standardvärden!$M$8*(K18/50)*'Förenklad klimatkalkyl'!$L$18*N18)+($L$18*'Arbetsmoment arbetsplatsen'!D5*'Arbetsmoment arbetsplatsen'!D7))","v":"Fyll i värde K-N"},"",{"$f":"IFERROR(-((H18-O18)/H18),\"\")","v":""},0,""]
["Asfalt","Asfalt, ABb PMB (standardtjocklek 50 mm)",50,null,"m2",3.5999999999999997E-2,50,{"$f":"((C19/50)*D19*Standardvärden!J3*'Förenklad klimatkalkyl'!F19)+(Standardvärden!M8*'Förenklad klimatkalkyl'!D19*(C19/50)*G19)+($D$19*'Arbetsmoment arbetsplatsen'!D5*'Arbetsmoment arbetsplatsen'!O4)","v":0},3.1E-2,{"$f":"((C19/50)*$D19*Standardvärden!$J$3*'Förenklad klimatkalkyl'!I19)+(Standardvärden!$M$8*(C19/50)*'Förenklad klimatkalkyl'!$D19*G19)+($D19*'Arbetsmoment arbetsplatsen'!D5*'Arbetsmoment arbetsplatsen'!O11)","v":0},null,null,null,null,{"$f":"IF(SUM(K19*L19*M19*N19)=0,\"Fyll i värde K-N\",((K19/50)*L19*Standardvärden!J3*'Förenklad klimatkalkyl'!M19)+(Standardvärden!M8*(K19/50)*'Förenklad klimatkalkyl'!L19*N19)+(L19*'Arbetsmoment arbetsplatsen'!D5*'Arbetsmoment arbetsplatsen'!D7))","v":"Fyll i värde K-N"},"","",0,""]
["Asfalt","Asfalt, ABS (standardtjocklek 40 mm)",40,null,"m2",0.04,50,{"$f":"((C20/40)*D20*Standardvärden!J4*'Förenklad klimatkalkyl'!F20)+(Standardvärden!M9*(C20/40)*'Förenklad klimatkalkyl'!D20*G20)+((D20*'Arbetsmoment arbetsplatsen'!D5*'Arbetsmoment arbetsplatsen'!O4))","v":0},0.03,{"$f":"((C20/40)*$D20*Standardvärden!$J$4*'Förenklad klimatkalkyl'!I20)+(Standardvärden!$M$9*(C20/40)*'Förenklad klimatkalkyl'!$D20*G20)+($D20*'Arbetsmoment arbetsplatsen'!D5*'Arbetsmoment arbetsplatsen'!O11)","v":0},null,null,null,null,{"$f":"IF(SUM(K20*L20*M20*N20)=0,\"Fyll i värde K-N\",((K20/40)*L20*Standardvärden!J4*'Förenklad klimatkalkyl'!M20)+(Standardvärden!M9*(K20/40)*'Förenklad klimatkalkyl'!L20*N20)+(L20*'Arbetsmoment arbetsplatsen'!D5*'Arbetsmoment arbetsplatsen'!D7))","v":"Fyll i värde K-N"},"","",0,""]
["Asfalt","Asfalt, ABS PMB (standardtjocklek 40 mm)",40,null,"m2",4.4999999999999998E-2,50,{"$f":"((C21/40)*D21*Standardvärden!J4*'Förenklad klimatkalkyl'!F21)+(Standardvärden!M9*(C21/40)*'Förenklad klimatkalkyl'!D21*G21)+(D21*'Arbetsmoment arbetsplatsen'!D5*'Arbetsmoment arbetsplatsen'!O4)","v":0},3.7999999999999999E-2,{"$f":"((C21/40)*$D21*Standardvärden!$J$4*'Förenklad klimatkalkyl'!I21)+(Standardvärden!$M$9*(C21/40)*'Förenklad klimatkalkyl'!$D21*G21)+($D21*'Arbetsmoment arbetsplatsen'!D5*'Arbetsmoment arbetsplatsen'!O11)","v":0},null,null,null,null,{"$f":"IF(SUM(K21*L21*M21*N21)=0,\"Fyll i värde K-N\",((K21/40)*L21*Standardvärden!J4*'Förenklad klimatkalkyl'!M21)+(Standardvärden!M9*(K21/40)*'Förenklad klimatkalkyl'!L21*N21)+(L21*'Arbetsmoment arbetsplatsen'!D5*'Arbetsmoment arbetsplatsen'!D7))","v":"Fyll i värde K-N"},"","",0,""]
["Asfalt","Asfalt, ABT (standardtjocklek 40 mm)",40,null,"m2",3.4000000000000002E-2,50,{"$f":"((C22/40)*D22*Standardvärden!J5*'Förenklad klimatkalkyl'!F22)+(Standardvärden!M10*(C22/40)*'Förenklad klimatkalkyl'!D22*G22)+(D22*'Arbetsmoment arbetsplatsen'!D5*'Arbetsmoment arbetsplatsen'!O4)","v":0},2.5999999999999999E-2,{"$f":"((C22/40)*$D22*Standardvärden!$J$5*'Förenklad klimatkalkyl'!I22)+(Standardvärden!$M$10*(C22/40)*'Förenklad klimatkalkyl'!$D22*G22)+($D22*'Arbetsmoment arbetsplatsen'!D5*'Arbetsmoment arbetsplatsen'!O11)","v":0},null,null,null,null,{"$f":"IF(SUM(K22*L22*M22*N22)=0,\"Fyll i värde K-N\",((K22/40)*L22*Standardvärden!J5*'Förenklad klimatkalkyl'!M22)+(Standardvärden!M10*(K22/40)*'Förenklad klimatkalkyl'!L22*N22)+(L22*'Arbetsmoment arbetsplatsen'!D5*'Arbetsmoment arbetsplatsen'!D7))","v":"Fyll i värde K-N"},"","",0,""]
["Asfalt","Asfalt, ABT PMB (standardtjocklek 40 mm)",40,null,"m2",0.04,50,{"$f":"((C23/40)*D23*Standardvärden!J5*'Förenklad klimatkalkyl'!F23)+(Standardvärden!M10*(C23/40)*'Förenklad klimatkalkyl'!D23*G23)+(D23*'Arbetsmoment arbetsplatsen'!D5*'Arbetsmoment arbetsplatsen'!O4)","v":0},3.4000000000000002E-2,{"$f":"((C23/40)*$D23*Standardvärden!$J$5*'Förenklad klimatkalkyl'!I23)+(Standardvärden!$M$10*(C23/40)*'Förenklad klimatkalkyl'!$D23*G23)+($D23*'Arbetsmoment arbetsplatsen'!D5*'Arbetsmoment arbetsplatsen'!O11)","v":0},null,null,null,null,{"$f":"IF(SUM(K23*L23*M23*N23)=0,\"Fyll i värde K-N\",((K23/40)*L23*Standardvärden!J5*'Förenklad klimatkalkyl'!M23)+(Standardvärden!M10*(K23/40)*'Förenklad klimatkalkyl'!L23*N23)+(L23*'Arbetsmoment arbetsplatsen'!D5*'Arbetsmoment arbetsplatsen'!D7))","v":"Fyll i värde K-N"},"","",0,""]
["Asfalt","Asfalt, AG (standardtjocklek 60 mm)",60,null,"m2",2.8000000000000001E-2,50,{"$f":"((C24/60)*D24*Standardvärden!J6*'Förenklad klimatkalkyl'!F24)+(Standardvärden!M11*(C24/60)*'Förenklad klimatkalkyl'!D24*G24)+(D24*'Arbetsmoment arbetsplatsen'!D5*'Arbetsmoment arbetsplatsen'!O4)","v":0},2.4E-2,{"$f":"((C24/60)*$D24*Standardvärden!$J$6*'Förenklad klimatkalkyl'!I24)+(Standardvärden!$M$11*(C24/60)*'Förenklad klimatkalkyl'!$D24*G24)+($D24*'Arbetsmoment arbetsplatsen'!D5*'Arbetsmoment arbetsplatsen'!O11)","v":0},null,null,null,null,{"$f":"IF(SUM(K24*L24*M24*N24)=0,\"Fyll i värde K-N\",((K24/60)*L24*Standardvärden!J6*'Förenklad klimatkalkyl'!M24)+(Standardvärden!M11*(K24/60)*'Förenklad klimatkalkyl'!L24*N24)+(L24*'Arbetsmoment arbetsplatsen'!D5*'Arbetsmoment arbetsplatsen'!D7))","v":"Fyll i värde K-N"},"","",0,""]
["Asfalt","Asfalt, AG PMB (standardtjocklek 60 mm)",60,null,"m2",3.4000000000000002E-2,50,{"$f":"((C25/60)*D25*Standardvärden!J6*'Förenklad klimatkalkyl'!F25)+(Standardvärden!M11*(C25/60)*'Förenklad klimatkalkyl'!D25*G25)+(D25*'Arbetsmoment arbetsplatsen'!D5*'Arbetsmoment arbetsplatsen'!O4)","v":0},3.1E-2,{"$f":"((C25/60)*$D25*Standardvärden!$J$6*'Förenklad klimatkalkyl'!I25)+(Standardvärden!$M$11*(C25/60)*'Förenklad klimatkalkyl'!$D25*G25)+($D25*'Arbetsmoment arbetsplatsen'!D5*'Arbetsmoment arbetsplatsen'!O11)","v":0},null,null,null,null,{"$f":"IF(SUM(K25*L25*M25*N25)=0,\"Fyll i värde K-N\",((K25/60)*L25*Standardvärden!J6*'Förenklad klimatkalkyl'!M25)+(Standardvärden!M11*(K25/60)*'Förenklad klimatkalkyl'!L25*N25)+(L25*'Arbetsmoment arbetsplatsen'!D5*'Arbetsmoment arbetsplatsen'!D7))","v":"Fyll i värde K-N"},"","",0,""]
["Asfalt","Asfalt, MJAG (standardtjocklek 50 mm)",50,null,"m2",2.1999999999999999E-2,50,{"$f":"((C26/50)*D26*Standardvärden!J7*'Förenklad klimatkalkyl'!F26)+(Standardvärden!M12*(C26/50)*'Förenklad klimatkalkyl'!D26*G26)+(D26*'Arbetsmoment arbetsplatsen'!D5*'Arbetsmoment arbetsplatsen'!O4)","v":0},2.1999999999999999E-2,{"$f":"((C26/50)*$D26*Standardvärden!$J$7*'Förenklad klimatkalkyl'!I26)+(Standardvärden!$M$12*(C26/50)*'Förenklad klimatkalkyl'!$D26*G26)+($D26*'Arbetsmoment arbetsplatsen'!D5*'Arbetsmoment arbetsplatsen'!O11)","v":0},null,null,null,null,{"$f":"IF(SUM(K26*L26*M26*N26)=0,\"Fyll i värde K-N\",((K26/50)*L26*Standardvärden!J7*'Förenklad klimatkalkyl'!M26)+(Standardvärden!M12*(K26/50)*'Förenklad klimatkalkyl'!L26*N26)+(L26*'Arbetsmoment arbetsplatsen'!D5*'Arbetsmoment arbetsplatsen'!D7))","v":"Fyll i värde K-N"},{"$f":"IFERROR(-(H26-J26)/H26,\"\")","v":""},{"$f":"IFERROR(-((H26-O26)/H26),\"\")","v":""},0,""]
["Asfalt","Asfalt, MJOG (standardtjocklek 50 mm)",50,null,"m2",2.1999999999999999E-2,50,{"$f":"((C27/50)*D27*Standardvärden!J7*'Förenklad klimatkalkyl'!F27)+(Standardvärden!M12*(C27/50)*'Förenklad klimatkalkyl'!D27*G27)+(D27*'Arbetsmoment arbetsplatsen'!D5*'Arbetsmoment arbetsplatsen'!O4)","v":0},2.1999999999999999E-2,{"$f":"((C27/50)*$D27*Standardvärden!$J$7*'Förenklad klimatkalkyl'!I27)+(Standardvärden!$M$12*(C27/50)*'Förenklad klimatkalkyl'!$D27*G27)+($D27*'Arbetsmoment arbetsplatsen'!D5*'Arbetsmoment arbetsplatsen'!O11)","v":0},null,null,null,null,{"$f":"IF(SUM(K27*L27*M27*N27)=0,\"Fyll i värde K-N\",((K27/50)*L27*Standardvärden!J7*'Förenklad klimatkalkyl'!M27)+(Standardvärden!M12*(K27/50)*'Förenklad klimatkalkyl'!L27*N27)+(L27*'Arbetsmoment arbetsplatsen'!D5*'Arbetsmoment arbetsplatsen'!D7))","v":"Fyll i värde K-N"},{"$f":"IFERROR(-(H27-J27)/H27,\"\")","v":""},{"$f":"IFERROR(-((H27-O27)/H27),\"\")","v":""},0,""]
["Asfalt","Asfalt, generellt värde",null,null,"ton",0.04,50,{"$f":"($D$28*Standardvärden!$K$25*'Förenklad klimatkalkyl'!$F$28)+(Standardvärden!$M$13*'Förenklad klimatkalkyl'!$D$28*$G$28)+($D$28*'Arbetsmoment arbetsplatsen'!$D$3*'Arbetsmoment arbetsplatsen'!$D$4*'Arbetsmoment arbetsplatsen'!$O$4)","v":0},"saknas",{"$f":"($D$28*Standardvärden!$K$25*'Förenklad klimatkalkyl'!$F$28)+(Standardvärden!$M$13*'Förenklad klimatkalkyl'!$D$28*$G$28)+($D$28*'Arbetsmoment arbetsplatsen'!$D$3*'Arbetsmoment arbetsplatsen'!$D$4*'Arbetsmoment arbetsplatsen'!O11)","v":0},null,null,null,null,{"$f":"IF(SUM(L28*M28*N28)=0,\"Fyll i värde L-N\",(L28*Standardvärden!K25*'Förenklad klimatkalkyl'!M28)+(Standardvärden!M13*'Förenklad klimatkalkyl'!L28*N28)+(L28*'Arbetsmoment arbetsplatsen'!D3*'Arbetsmoment arbetsplatsen'!D4*'Arbetsmoment arbetsplatsen'!D7))","v":"Fyll i värde L-N"},"","",0,""]
["Ledning av plaströr","Ledning av plaströr, dränrör dim 200",null,null,"m",1.8,540,{"$f":"(D29*Standardvärden!$K$30*F29)+(D29*G29*Standardvärden!$N$50)","v":0},"saknas",{"$f":"H29","v":0},null,null,null,null,{"$f":"IF(SUM(L29*M29*N29)=0,\"Fyll i värde L-N\",(L29*Standardvärden!$K$30*M29)+(L29*N29*Standardvärden!$N$50))","v":"Fyll i värde L-N"},"","",0,""]
["Ledning av plaströr","Ledning av plaströr, markavloppsrör dim 225",null,null,"m",1.8,540,{"$f":"(D30*Standardvärden!$K$31*F30)+(D30*G30*Standardvärden!$O$50)","v":0},"saknas",{"$f":"H30","v":0},null,null,null,null,{"$f":"IF(SUM(L30*M30*N30)=0,\"Fyll i värde L-N\",(L30*Standardvärden!$K$31*M30)+(L30*N30*Standardvärden!$O$50))","v":"Fyll i värde L-N"},"","",0,""]
["Bergmassor","Berg Fall A, fyll",null,null,"m3","-","-",{"$f":"($D$31*'Arbetsmoment arbetsplatsen'!$D$13*'Arbetsmoment arbetsplatsen'!$D$14*'Arbetsmoment arbetsplatsen'!$O$4)+($D$31*'Arbetsmoment arbetsplatsen'!$D$9*'Arbetsmoment arbetsplatsen'!$O$4)+($D$31*'Arbetsmoment arbetsplatsen'!$K$25*'Arbetsmoment arbetsplatsen'!$K$21*'Arbetsmoment arbetsplatsen'!J14*'Arbetsmoment arbetsplatsen'!$J$11*'Arbetsmoment arbetsplatsen'!$O$4*'Arbetsmoment arbetsplatsen'!$J$19)","v":0},"A1-A3 saknas men drivmedelskrav finns",{"$f":"($D$31*'Arbetsmoment arbetsplatsen'!$D$13*'Arbetsmoment arbetsplatsen'!$D$14*'Arbetsmoment arbetsplatsen'!O11)+($D$31*'Arbetsmoment arbetsplatsen'!$D$9*'Arbetsmoment arbetsplatsen'!O11)+($D$31*'Arbetsmoment arbetsplatsen'!$K$25*'Arbetsmoment arbetsplatsen'!$K$21*'Arbetsmoment arbetsplatsen'!J14*'Arbetsmoment arbetsplatsen'!$J$11*'Arbetsmoment arbetsplatsen'!O11*'Arbetsmoment arbetsplatsen'!$J$19)","v":0},null,null,"-","-",{"$f":"IF(SUM(L31)=0,\"Fyll i värde L\",(L31*'Arbetsmoment arbetsplatsen'!$D$13*'Arbetsmoment arbetsplatsen'!$D$14*'Arbetsmoment arbetsplatsen'!J13)+(L31*'Arbetsmoment arbetsplatsen'!$D$9*'Arbetsmoment arbetsplatsen'!J13)+(L31*'Arbetsmoment arbetsplatsen'!$K$25*'Arbetsmoment arbetsplatsen'!$K$21*'Arbetsmoment arbetsplatsen'!J16*'Arbetsmoment arbetsplatsen'!$J$11*'Arbetsmoment arbetsplatsen'!J13*'Arbetsmoment arbetsplatsen'!$J$19))","v":"Fyll i värde L"},"","",0,""]
["Bergmassor","Berg Fall B, fyll",null,null,"m3",3.0000000000000001E-3,"-",{"$f":"($D$32*'Arbetsmoment arbetsplatsen'!$K$25*$F$32)+($D$32*'Arbetsmoment arbetsplatsen'!$K$25*'Arbetsmoment arbetsplatsen'!$K$21*'Arbetsmoment arbetsplatsen'!J5*'Arbetsmoment arbetsplatsen'!$J$2*'Arbetsmoment arbetsplatsen'!$O$4*'Arbetsmoment arbetsplatsen'!$J$19)+($D$32*'Arbetsmoment arbetsplatsen'!$D$9*'Arbetsmoment arbetsplatsen'!$O$4)","v":0},"A1-A3 saknas men drivmedelskrav finns",{"$f":"($D$32*'Arbetsmoment arbetsplatsen'!$K$25*$F$32)+($D$32*'Arbetsmoment arbetsplatsen'!$K$25*'Arbetsmoment arbetsplatsen'!$K$21*'Arbetsmoment arbetsplatsen'!J5*'Arbetsmoment arbetsplatsen'!$J$2*'Arbetsmoment arbetsplatsen'!$O$11*'Arbetsmoment arbetsplatsen'!$J$19)+($D$32*'Arbetsmoment arbetsplatsen'!$D$9*'Arbetsmoment arbetsplatsen'!O11)","v":0},null,null,null,"-",{"$f":"IF(SUM(L32*M32)=0,\"Fyll i värde L-M\",(L32*'Arbetsmoment arbetsplatsen'!$K$25*M32)+(L32*'Arbetsmoment arbetsplatsen'!$K$25*'Arbetsmoment arbetsplatsen'!$K$21*'Arbetsmoment arbetsplatsen'!J6*'Arbetsmoment arbetsplatsen'!$J$2*'Arbetsmoment arbetsplatsen'!J4*'Arbetsmoment arbetsplatsen'!$J$19)+(L32*'Arbetsmoment arbetsplatsen'!$D$9*'Arbetsmoment arbetsplatsen'!D11))","v":"Fyll i värde L-M"},"","",0,""]
["Bergmassor","Bergschakt fall A",null,null,"m3",1.32,500,{"$f":"($D$33*'Arbetsmoment arbetsplatsen'!$D$18*'Arbetsmoment arbetsplatsen'!$D$19*'Arbetsmoment arbetsplatsen'!$O$4)+($D$33*'Arbetsmoment arbetsplatsen'!$K$26*'Arbetsmoment arbetsplatsen'!$K$21*'Arbetsmoment arbetsplatsen'!$J$14*'Arbetsmoment arbetsplatsen'!$J$11*'Arbetsmoment arbetsplatsen'!$O$4*'Arbetsmoment arbetsplatsen'!$J$19)+($D$33*'Arbetsmoment arbetsplatsen'!$D$9*'Arbetsmoment arbetsplatsen'!$K$27*'Arbetsmoment arbetsplatsen'!$O$4)+($D$33*'Arbetsmoment arbetsplatsen'!$K$28*'Förenklad klimatkalkyl'!$F$33)+($D$33*'Arbetsmoment arbetsplatsen'!$K$28*'Arbetsmoment arbetsplatsen'!$K$21*$G$33*'Arbetsmoment arbetsplatsen'!$K$29*'Arbetsmoment arbetsplatsen'!$O$4*'Arbetsmoment arbetsplatsen'!$J$19)","v":0},"A1-A3 saknas men drivmedelskrav finns",{"$f":"($D$33*'Arbetsmoment arbetsplatsen'!$D$18*'Arbetsmoment arbetsplatsen'!$D$19*'Arbetsmoment arbetsplatsen'!O11)+($D$33*'Arbetsmoment arbetsplatsen'!$K$26*'Arbetsmoment arbetsplatsen'!$K$21*'Arbetsmoment arbetsplatsen'!$J$14*'Arbetsmoment arbetsplatsen'!$J$11*'Arbetsmoment arbetsplatsen'!O11*'Arbetsmoment arbetsplatsen'!$J$19)+($D$33*'Arbetsmoment arbetsplatsen'!$D$9*'Arbetsmoment arbetsplatsen'!$K$27*'Arbetsmoment arbetsplatsen'!O11)+($D$33*'Arbetsmoment arbetsplatsen'!$K$28*$F$33)+($D$33*'Arbetsmoment arbetsplatsen'!$K$28*'Arbetsmoment arbetsplatsen'!$K$21*$G$33*'Arbetsmoment arbetsplatsen'!$K$29*'Arbetsmoment arbetsplatsen'!$O$4*'Arbetsmoment arbetsplatsen'!$J$19)","v":0},null,null,null,null,{"$f":"IF(SUM(L33*M33*N33)=0,\"Fyll i värde L-N\",($L$33*'Arbetsmoment arbetsplatsen'!$D$18*'Arbetsmoment arbetsplatsen'!$D$19*'Arbetsmoment arbetsplatsen'!D21)+($L$33*'Arbetsmoment arbetsplatsen'!$K$26*'Arbetsmoment arbetsplatsen'!$K$21*'Arbetsmoment arbetsplatsen'!$J$15*'Arbetsmoment arbetsplatsen'!$J$11*'Arbetsmoment arbetsplatsen'!J13*'Arbetsmoment arbetsplatsen'!$J$19)+($L$33*'Arbetsmoment arbetsplatsen'!$D$9*'Arbetsmoment arbetsplatsen'!$K$27*'Arbetsmoment arbetsplatsen'!D11)+($L$33*'Arbetsmoment arbetsplatsen'!$K$28*'Förenklad klimatkalkyl'!$M$33)+($L$33*'Arbetsmoment arbetsplatsen'!$K$28*'Arbetsmoment arbetsplatsen'!$K$21*$N$33*'Arbetsmoment arbetsplatsen'!$K$29*'Arbetsmoment arbetsplatsen'!$O$4*'Arbetsmoment arbetsplatsen'!$J$19))","v":"Fyll i värde L-N"},"","",0,""]
["Bergmassor","Bergschakt fall B",null,null,"m3",1.32,500,{"$f":"($D$34*'Arbetsmoment arbetsplatsen'!$K$26*'Arbetsmoment arbetsplatsen'!$K$21*'Arbetsmoment arbetsplatsen'!$J$5*'Arbetsmoment arbetsplatsen'!$K$27*'Arbetsmoment arbetsplatsen'!$O$4*'Arbetsmoment arbetsplatsen'!$J$19)+($D$34*'Arbetsmoment arbetsplatsen'!$D$9*'Arbetsmoment arbetsplatsen'!$K$27*'Arbetsmoment arbetsplatsen'!$O$4)+($D$34*'Arbetsmoment arbetsplatsen'!$D$18*'Arbetsmoment arbetsplatsen'!$D$19*'Arbetsmoment arbetsplatsen'!$O$4)+($D$34*'Arbetsmoment arbetsplatsen'!$K$28*$F$34)+($D$34*'Arbetsmoment arbetsplatsen'!$K$28*'Arbetsmoment arbetsplatsen'!$K$21*'Förenklad klimatkalkyl'!$G$34*'Arbetsmoment arbetsplatsen'!$K$29*'Arbetsmoment arbetsplatsen'!$O$4*'Arbetsmoment arbetsplatsen'!$J$19)","v":0},"A1-A3 saknas men drivmedelskrav finns",{"$f":"($D$34*'Arbetsmoment arbetsplatsen'!$K$26*'Arbetsmoment arbetsplatsen'!$K$21*'Arbetsmoment arbetsplatsen'!J5*'Arbetsmoment arbetsplatsen'!$K$27*'Arbetsmoment arbetsplatsen'!$O$11*'Arbetsmoment arbetsplatsen'!$J$19)+($D$34*'Arbetsmoment arbetsplatsen'!$D$9*'Arbetsmoment arbetsplatsen'!$K$27*'Arbetsmoment arbetsplatsen'!O11)+($D$34*'Arbetsmoment arbetsplatsen'!$D$18*'Arbetsmoment arbetsplatsen'!$D$19*'Arbetsmoment arbetsplatsen'!O11)+($D$34*'Arbetsmoment arbetsplatsen'!$K$28*$F$34)+($D$34*'Arbetsmoment arbetsplatsen'!$K$28*'Arbetsmoment arbetsplatsen'!$K$21*'Förenklad klimatkalkyl'!$G$34*'Arbetsmoment arbetsplatsen'!$K$29*'Arbetsmoment arbetsplatsen'!$O$4*'Arbetsmoment arbetsplatsen'!$J$19)","v":0},null,null,null,null,{"$f":"IF(SUM(L34*M34*N34)=0,\"Fyll i värde L-N\",($L$34*'Arbetsmoment arbetsplatsen'!$K$26*'Arbetsmoment arbetsplatsen'!$K$21*'Arbetsmoment arbetsplatsen'!$J$5*'Arbetsmoment arbetsplatsen'!$K$27*'Arbetsmoment arbetsplatsen'!$J$4*'Arbetsmoment arbetsplatsen'!$J$19)+($L$34*'Arbetsmoment arbetsplatsen'!$D$9*'Arbetsmoment arbetsplatsen'!$K$27*'Arbetsmoment arbetsplatsen'!D11)+($L$34*'Arbetsmoment arbetsplatsen'!$D$18*'Arbetsmoment arbetsplatsen'!$D$19*'Arbetsmoment arbetsplatsen'!D21)+($L$34*'Arbetsmoment arbetsplatsen'!$K$28*$M$34)+($L$34*'Arbetsmoment arbetsplatsen'!$K$28*'Arbetsmoment arbetsplatsen'!$K$21*N34*'Arbetsmoment arbetsplatsen'!$K$29*'Arbetsmoment arbetsplatsen'!$O$4*'Arbetsmoment arbetsplatsen'!$J$19))","v":"Fyll i värde L-N"},"","",0,""]
["Jordmassor","Jord Fall A, fyll",null,null,"m3","-","-",{"$f":"($D$35*'Arbetsmoment arbetsplatsen'!$D$9*'Arbetsmoment arbetsplatsen'!$O$4)+($D$35*'Arbetsmoment arbetsplatsen'!$K$24*'Arbetsmoment arbetsplatsen'!$K$21*'Arbetsmoment arbetsplatsen'!J14*'Arbetsmoment arbetsplatsen'!$J$11*'Arbetsmoment arbetsplatsen'!$O$4*'Arbetsmoment arbetsplatsen'!$J$19)","v":0},"A1-A3 saknas men drivmedelskrav finns",{"$f":"($D$35*'Arbetsmoment arbetsplatsen'!$D$9*'Arbetsmoment arbetsplatsen'!O11)+($D$35*'Arbetsmoment arbetsplatsen'!$K$24*'Arbetsmoment arbetsplatsen'!$K$21*'Arbetsmoment arbetsplatsen'!J14*'Arbetsmoment arbetsplatsen'!$J$11*'Arbetsmoment arbetsplatsen'!O11*'Arbetsmoment arbetsplatsen'!$J$19)","v":0},null,null,"-","-",{"$f":"IF(SUM(L35)=0,\"Fyll i värde L\",($L$35*'Arbetsmoment arbetsplatsen'!$D$9*'Arbetsmoment arbetsplatsen'!J13)+($L$35*'Arbetsmoment arbetsplatsen'!$K$24*'Arbetsmoment arbetsplatsen'!$K$21*'Arbetsmoment arbetsplatsen'!J18*'Arbetsmoment arbetsplatsen'!$J$11*'Arbetsmoment arbetsplatsen'!J13*'Arbetsmoment arbetsplatsen'!$J$19))","v":"Fyll i värde L"},"","",0,""]
["Jordmassor","Jord Fall B, fyll",null,null,"m3",2.9999999999999997E-4,"-",{"$f":"($D$36*'Arbetsmoment arbetsplatsen'!$D$9*'Arbetsmoment arbetsplatsen'!$O$4)+($D$36*'Arbetsmoment arbetsplatsen'!$K$24*$F$36)+($D$36*'Arbetsmoment arbetsplatsen'!$K$24*'Arbetsmoment arbetsplatsen'!$K$21*'Arbetsmoment arbetsplatsen'!J5*'Arbetsmoment arbetsplatsen'!$J$2*'Arbetsmoment arbetsplatsen'!$O$4*'Arbetsmoment arbetsplatsen'!$J$19)","v":0},"A1-A3 saknas men drivmedelskrav finns",{"$f":"($D$36*'Arbetsmoment arbetsplatsen'!$D$9*'Arbetsmoment arbetsplatsen'!O11)+($D$36*'Arbetsmoment arbetsplatsen'!$K$24*$F$36)+($D$36*'Arbetsmoment arbetsplatsen'!$K$24*'Arbetsmoment arbetsplatsen'!$K$21*'Arbetsmoment arbetsplatsen'!J5*'Arbetsmoment arbetsplatsen'!$J$2*'Arbetsmoment arbetsplatsen'!$O$11*'Arbetsmoment arbetsplatsen'!$J$19)","v":0},null,null,null,"-",{"$f":"IF(SUM(L36*M36)=0,\"Fyll i värde L-M\",($L$36*'Arbetsmoment arbetsplatsen'!$D$9*'Arbetsmoment arbetsplatsen'!D11)+($L$36*'Arbetsmoment arbetsplatsen'!$K$24*$M$36)+($L$36*'Arbetsmoment arbetsplatsen'!$K$24*'Arbetsmoment arbetsplatsen'!$K$21*'Arbetsmoment arbetsplatsen'!J9*'Arbetsmoment arbetsplatsen'!$J$2*'Arbetsmoment arbetsplatsen'!$J$4*'Arbetsmoment arbetsplatsen'!$J$19))","v":"Fyll i värde L-M"},"","",0,""]
["Jordmassor","Jordschakt Fall A",null,null,"m3","-","-",{"$f":"($D$37*'Arbetsmoment arbetsplatsen'!$D$9*'Arbetsmoment arbetsplatsen'!$O$4)+($D$37*'Arbetsmoment arbetsplatsen'!$K$24*'Arbetsmoment arbetsplatsen'!$K$21*'Arbetsmoment arbetsplatsen'!J14*'Arbetsmoment arbetsplatsen'!$J$11*'Arbetsmoment arbetsplatsen'!$O$4*'Arbetsmoment arbetsplatsen'!$J$19)+($D$37*'Arbetsmoment arbetsplatsen'!$D$23*'Arbetsmoment arbetsplatsen'!$D$24*'Arbetsmoment arbetsplatsen'!$O$4)","v":0},"A1-A3 saknas men drivmedelskrav finns",{"$f":"($D$37*'Arbetsmoment arbetsplatsen'!$D$9*'Arbetsmoment arbetsplatsen'!O11)+($D$37*'Arbetsmoment arbetsplatsen'!$K$24*'Arbetsmoment arbetsplatsen'!$K$21*'Arbetsmoment arbetsplatsen'!J14*'Arbetsmoment arbetsplatsen'!$J$11*'Arbetsmoment arbetsplatsen'!O11*'Arbetsmoment arbetsplatsen'!$J$19)+($D$37*'Arbetsmoment arbetsplatsen'!$D$23*'Arbetsmoment arbetsplatsen'!$D$24*'Arbetsmoment arbetsplatsen'!O11)","v":0},null,null,"-","-",{"$f":"IF(SUM(L37)=0,\"Fyll i värde L\",($L$37*'Arbetsmoment arbetsplatsen'!$D$9*'Arbetsmoment arbetsplatsen'!D11)+($L$37*'Arbetsmoment arbetsplatsen'!$K$24*'Arbetsmoment arbetsplatsen'!$K$21*'Arbetsmoment arbetsplatsen'!J17*'Arbetsmoment arbetsplatsen'!$J$11*'Arbetsmoment arbetsplatsen'!J13*'Arbetsmoment arbetsplatsen'!$J$19)+($L$37*'Arbetsmoment arbetsplatsen'!$D$23*'Arbetsmoment arbetsplatsen'!$D$24*'Arbetsmoment arbetsplatsen'!D26))","v":"Fyll i värde L"},"","",0,""]
["Jordmassor","Jordschakt Fall B",null,null,"m3","-","-",{"$f":"($D$38*'Arbetsmoment arbetsplatsen'!$D$9*'Arbetsmoment arbetsplatsen'!$O$4)+($D$38*'Arbetsmoment arbetsplatsen'!$K$24*'Arbetsmoment arbetsplatsen'!$K$21*'Arbetsmoment arbetsplatsen'!J5*'Arbetsmoment arbetsplatsen'!$J$2*'Arbetsmoment arbetsplatsen'!$O$4*'Arbetsmoment arbetsplatsen'!$J$19)+($D$38*'Arbetsmoment arbetsplatsen'!$D$23*'Arbetsmoment arbetsplatsen'!$D$24*'Arbetsmoment arbetsplatsen'!$O$4)","v":0},"A1-A3 saknas men drivmedelskrav finns",{"$f":"($D$38*'Arbetsmoment arbetsplatsen'!$D$9*'Arbetsmoment arbetsplatsen'!O11)+($D$38*'Arbetsmoment arbetsplatsen'!$K$24*'Arbetsmoment arbetsplatsen'!$K$21*'Arbetsmoment arbetsplatsen'!J5*'Arbetsmoment arbetsplatsen'!$J$2*'Arbetsmoment arbetsplatsen'!$O$11*'Arbetsmoment arbetsplatsen'!$J$19)+($D$38*'Arbetsmoment arbetsplatsen'!$D$23*'Arbetsmoment arbetsplatsen'!$D$24*'Arbetsmoment arbetsplatsen'!O11)","v":0},null,null,"-","-",{"$f":"IF(SUM(L38)=0,\"Fyll i värde L\",($L$38*'Arbetsmoment arbetsplatsen'!$D$9*'Arbetsmoment arbetsplatsen'!D11)+($L$38*'Arbetsmoment arbetsplatsen'!$K$24*'Arbetsmoment arbetsplatsen'!$K$21*'Arbetsmoment arbetsplatsen'!J8*'Arbetsmoment arbetsplatsen'!$J$2*'Arbetsmoment arbetsplatsen'!$J$4*'Arbetsmoment arbetsplatsen'!$J$19)+($L$38*'Arbetsmoment arbetsplatsen'!$D$23*'Arbetsmoment arbetsplatsen'!$D$24*'Arbetsmoment arbetsplatsen'!D26))","v":"Fyll i värde L"},"","",0,""]
[null,null,null,null,null,null,"Total",{"$f":"SUM(H7:H38)","v":0},"Total",{"$f":"SUM(J7:J38)","v":0},null,null,null,"Total",{"$f":"IF(SUM(O7:O38)=0,\"\",SUM(O7:O38))","v":""},"",{"$f":"IFERROR(-(H39-O39)/H39,\"\")","v":""},0,{"$f":"IFERROR(-(H39-O39),\"\")","v":""}]

{"sheet":"Arbetsmoment arbetsplatsen","index":3,"n_rows":29,"n_cols":16,"rows_kept":29,"cut":false,"hidden":false,"merged":[[21,0,21,4],[17,13,17,16],[0,6,0,10],[0,0,0,4],[7,0,7,4],[11,0,11,4],[16,0,16,4]]}
["Asfaltsutläggning ",null,null,null,null,null,"Lastbil regiontransport för fall B massor",null,null,null,null,null,null,"Emmisionsfaktorer alternativa drivmedel","kg CO2e/l dieselekvivalenter"]
["Antal utläggningar m2",null,null,1,"st/m2",null,"Dieselförbrukning",null,null,1.5,"MJ/tkm",null,null,"Drivmedel","Emissionsfaktor"]
["Antal utläggningar ton",null,null,7.4,"st/ton",null,"Drivmedel klimatförbättrat alt.",null,null,"Gemensamma miljökrav",null,null,null,"Biogas",0.6]
["Dieselförbrukning",null,null,9.64E-2,"l/st",null,"Emissionsfaktor drivmedel",null,null,{"$f":"VLOOKUP(J3,N3:O16,2)","v":1.113},"kg CO2e/l",null,null,"Diesel",2.8]
["Diesel ekv per m2",null,null,{"$f":"D2*D4","v":9.64E-2},"l/m2",null,"Transportlängd fall B schablon",null,null,30,"km",null,null,"E85",1.72]
["Drivmedel klimatförbättrat alt.",null,null,"Gemensamma miljökrav",null,null,"Just. transportlängd Bergschakt",null,null,30,"km",null,null,"ED95",1]
["Emissionsfaktor drivmedel",null,null,{"$f":"VLOOKUP(D6,N3:O15,2)","v":1.113},"kg CO2e/l",null,"Just. transportlängd Berg Fyll",null,null,30,"km",null,null,"El (residual)",0.19]
["Grävmaskin",null,null,null,null,null,"Just. transportlängd Jordschakt",null,null,30,"km",null,null,"El (ursprungsmärkt förnybar)",0.04]
["Dieselförbrukning",null,null,0.18611309949892599,"l/m3",null,"Just. transportlängd Jord fyll",null,null,30,"km",null,null,"FAME",1.1000000000000001]
["Drivmedel klimatförbättrat alt.",null,null,"Gemensamma miljökrav",null,null,null,"Dumper Fall A massor",null,null,null,null,null,"Fordonsgas",0.89]
["Emissionsfaktor drivmedel",null,null,{"$f":"VLOOKUP(D10,N3:O15,2)","v":1.113},"kg CO2e/l",null,"Dieselförbrukning",null,null,6.27,"MJ/tkm",null,null,"Gemensamma miljökrav",{"$f":"VLOOKUP(Projektinformation!C4,'Arbetsmoment arbetsplatsen'!N19:P26,3)","v":1.113}]
["Krossning mobilt verk",null,null,null,null,null,"Drivmedel klimatförbättrat alt.",null,null,"Gemensamma miljökrav",null,null,null,"HVO 100",0.39]
["Energiåtgång krossning",null,null,71.082082277246997,"MJ/m3",null,"Emissionsfaktor drivmedel",null,null,{"$f":"VLOOKUP(J12,N3:O16,2)","v":1.113},"kg CO2e/l",null,null,"LNG/LBG",3.48]
["Inverterat värmevärde Diesel",null,null,2.8344999999999999E-2,"l/MJ",null,"Transportlängd fall A schablon",null,null,2,"km",null,null,"Vätgas i bränslecell (förnybar från biomassa)",1.1200000000000001]
["Drivmedel klimatförbättrat alt.",null,null,"Gemensamma miljökrav",null,null,"Just. Transportlängd Bergschakt",null,null,2,"km",null,null,"Vätgas i bränslecell (Förnybar från vindkraft)",0.22]
["Emissionsfaktor drivmedel",null,null,{"$f":"VLOOKUP(D15,N3:O15,2)","v":1.113},"kg CO2e/l",null,"Just. Transportlängd Berg fyll",null,null,2,"km",null,null,"Vätgas i bränslecell (icke förnybar, från naturgasreformering)",2.68]
["Borrning",null,null,null,null,null,"Just. Transportlängd Jordschakt",null,null,2,"km"]
["Energiåtgång borrning",null,null,2.5,"MJ/m3",null,"Just. Transportlängd Jord fyll",null,null,2,"km",null,null,"Gemensamma miljökrav andel förnybara drivmedel, Antagande HVO som förnybart drivmedel"]
["Inverterat värmevärde Diesel",null,null,2.8344999999999999E-2,"l/MJ",null,"Inverterat värmevärde Diesel",null,null,2.8344999999999999E-2,"l/MJ",null,null,"Årtal","Andel","Motsv emmisionsfaktor "]
["Drivmedel klimatförbättrat alt.",null,null,"Gemensamma miljökrav",null,null,null,null,null,null,null,null,null,2024,0.5,{"$f":"(O20*$O$12)+((1-O20)*$O$4)","v":1.595}]
["Emissionsfaktor drivmedel",null,null,{"$f":"VLOOKUP(D20,N3:O15,2)","v":1.113},"kg CO2e/l",null,null,null,"kg-> ton",null,1E-3,null,null,2025,0.5,1.595]
["Pumpning under byggtid",null,null,null,null,null,null,null,null,null,null,null,null,2026,0.7,1.113]
["Energiåtgång pumpning",null,null,0.3,"MJ/m3",null,null,null,null,null,null,null,null,2027,0.7,1.113]
["Inverterat värmevärde Diesel",null,null,2.8344999999999999E-2,"l/MJ",null,"Densitet Jord",null,"kg/m3",null,1600,null,null,2028,0.9,0.63100000000000001]
["Drivmedel klimatförbättrat alt.",null,null,"Gemensamma miljökrav",null,null,"Densitet Bergkross",null,"kg/m3",null,1800,null,null,2029,0.9,0.63100000000000001]
["Emissionsfaktor drivmedel",null,null,{"$f":"VLOOKUP(D25,N3:O15,2)","v":1.113},"kg CO2e/l",null,"Densitet fast berg",null,"kg/m3",null,2700,null,null,2030,1,0.39]
[null,null,null,null,null,null,"Svällfaktor bergschakt",null,"m3/m3",null,1.5]
[null,null,null,null,null,null,"Sprängmedel åtgång",null,"kg/m3",null,0.5]
[null,null,null,null,null,null,"Lastbil landsväg",null,"MJ/tkm",null,1]

{"sheet":"Resultat","index":4,"n_rows":64,"n_cols":13,"rows_kept":64,"cut":false,"hidden":false,"merged":[]}
[null,"Andel av totala Klimatpåverkan [kg CO2e] som respektive matrialtyp står för i de olika alternativen"]
[]
[null,"Referenskalkyl"]
[]
[null,null,null,null,null,null,null,null,null,"Materialtyp","Andel av totala Klimatpåverkan [kg CO2e] för respektive matrialtyp"]
[null,null,null,null,null,null,null,null,null,"Anläggningssten",{"$error":"#DIV/0!"}]
[null,null,null,null,null,null,null,null,null,"Asfalt",{"$error":"#DIV/0!"}]
[null,null,null,null,null,null,null,null,null,"Bergmassor",{"$error":"#DIV/0!"}]
[null,null,null,null,null,null,null,null,null,"Betong",{"$error":"#DIV/0!"}]
[null,null,null,null,null,null,null,null,null,"Jordmassor",{"$error":"#DIV/0!"}]
[null,null,null,null,null,null,null,null,null,"Ledning av plaströr",{"$error":"#DIV/0!"}]
[null,null,null,null,null,null,null,null,null,"Stål",{"$error":"#DIV/0!"}]
[null,null,null,null,null,null,null,null,null,"Totalsumma",{"$error":"#DIV/0!"}]
[]
[]
[]
[]
[]
[]
[null,"Med gemensamma miljökrav"]
[null,null,null,null,null,null,null,null,null,"Materialtyp","Andel av totala Klimatpåverkan [kg CO2e] för respektive matrialtyp"]
[null,null,null,null,null,null,null,null,null,"Anläggningssten",{"$error":"#DIV/0!"}]
[null,null,null,null,null,null,null,null,null,"Asfalt",{"$error":"#DIV/0!"}]
[null,null,null,null,null,null,null,null,null,"Bergmassor",{"$error":"#DIV/0!"}]
[null,null,null,null,null,null,null,null,null,"Betong",{"$error":"#DIV/0!"}]
[null,null,null,null,null,null,null,null,null,"Jordmassor",{"$error":"#DIV/0!"}]
[null,null,null,null,null,null,null,null,null,"Ledning av plaströr",{"$error":"#DIV/0!"}]
[null,null,null,null,null,null,null,null,null,"Stål",{"$error":"#DIV/0!"}]
[null,null,null,null,null,null,null,null,null,"Totalsumma",{"$error":"#DIV/0!"}]
[]
[]
[]
[]
[]
[]
[]
[null,"Klimatförbättrat alternativ"]
[null,null,null,null,null,null,null,null,null,"Materialtyp","Andel av totala Klimatpåverkan [kg CO2e] för respektive matrialtyp"]
[null,null,null,null,null,null,null,null,null,"Anläggningssten",{"$error":"#DIV/0!"}]
[null,null,null,null,null,null,null,null,null,"Asfalt",{"$error":"#DIV/0!"}]
[null,null,null,null,null,null,null,null,null,"Bergmassor",{"$error":"#DIV/0!"}]
[null,null,null,null,null,null,null,null,null,"Betong",{"$error":"#DIV/0!"}]
[null,null,null,null,null,null,null,null,null,"Jordmassor",{"$error":"#DIV/0!"}]
[null,null,null,null,null,null,null,null,null,"Ledning av plaströr",{"$error":"#DIV/0!"}]
[null,null,null,null,null,null,null,null,null,"Stål",{"$error":"#DIV/0!"}]
[null,null,null,null,null,null,null,null,null,"Totalsumma",{"$error":"#DIV/0!"}]
[]
[]
[]
[]
[]
[]
[]
[]
[null,"Jämförelse av klimatpåverkan  [kg CO2e] för respektive alternativ och materialtyp"]
[null,null,null,null,null,null,null,null,null,"Materialtyp","Referenskalkyl","Med gemensamma miljökrav","Utgångsläge entreprenad"]
[null,null,null,null,null,null,null,null,null,"Anläggningssten",0,0,0]
[null,null,null,null,null,null,null,null,null,"Asfalt",0,0,0]
[null,null,null,null,null,null,null,null,null,"Bergmassor",0,0,0]
[null,null,null,null,null,null,null,null,null,"Betong",0,0,0]
[null,null,null,null,null,null,null,null,null,"Jordmassor",0,0,0]
[null,null,null,null,null,null,null,null,null,"Ledning av plaströr",0,0,0]
[null,null,null,null,null,null,null,null,null,"Stål",0,0,0]
[null,null,null,null,null,null,null,null,null,"Totalsumma",0,0,0]

{"sheet":"Resultat per materialtyp","index":5,"n_rows":101,"n_cols":12,"rows_kept":101,"cut":false,"hidden":false,"merged":[]}
[null,"Jämförelse av klimatpåverkan  [kg CO2e] per materialtyp för respektive alternativ"]
[]
[null,null,null,null,null,null,null,null,"Materialtyp","Referenskalkyl","Med gemensamma miljökrav","Utgångsläge entreprenad"]
[null,null,null,null,null,null,null,null,"Anläggningssten",0,0,0]
[null,null,null,null,null,null,null,null,"Totalsumma",0,0,0]
[]
[]
[]
[]
[]
[]
[]
[]
[]
[]
[]
[]
[]
[null,null,null,null,null,null,null,null,"Materialtyp","Referenskalkyl","Med gemensamma miljökrav","Utgångsläge entreprenad"]
[null,null,null,null,null,null,null,null,"Asfalt",0,0,0]
[null,null,null,null,null,null,null,null,"Totalsumma",0,0,0]
[]
[]
[]
[]
[]
[]
[]
[]
[]
[]
[]
[]
[]
[null,null,null,null,null,null,null,null,"Materialtyp","Referenskalkyl","Med gemensamma miljökrav","Utgångsläge entreprenad"]
[null,null,null,null,null,null,null,null,"Bergmassor",0,0,0]
[null,null,null,null,null,null,null,null,"Totalsumma",0,0,0]
[]
[]
[]
[]
[]
[]
[]
[]
[]
[]
[]
[]
[]
[null,null,null,null,null,null,null,null,"Materialtyp","Referenskalkyl","Med gemensamma miljökrav","Utgångsläge entreprenad"]
[null,null,null,null,null,null,null,null,"Betong",0,0,0]
[null,null,null,null,null,null,null,null,"Totalsumma",0,0,0]
[]
[]
[]
[]
[]
[]
[]
[]
[]
[]
[]
[]
[]
[null,null,null,null,null,null,null,null,"Materialtyp","Referenskalkyl","Med gemensamma miljökrav","Utgångsläge entreprenad"]
[null,null,null,null,null,null,null,null,"Jordmassor",0,0,0]
[null,null,null,null,null,null,null,null,"Totalsumma",0,0,0]
[]
[]
[]
[]
[]
[]
[]
[]
[]
[]
[]
[]
[]
[null,null,null,null,null,null,null,null,"Materialtyp","Referenskalkyl","Med gemensamma miljökrav","Utgångsläge entreprenad"]
[null,null,null,null,null,null,null,null,"Ledning av plaströr",0,0,0]
[null,null,null,null,null,null,null,null,"Totalsumma",0,0,0]
[]
[]
[]
[]
[]
[]
[]
[]
[]
[]
[]
[]
[]
[null,null,null,null,null,null,null,null,"Materialtyp","Referenskalkyl","Med gemensamma miljökrav","Utgångsläge entreprenad"]
[null,null,null,null,null,null,null,null,"Stål",0,0,0]
[null,null,null,null,null,null,null,null,"Totalsumma",0,0,0]

{"sheet":"Standardvärden","index":6,"n_rows":54,"n_cols":16,"rows_kept":54,"cut":false,"hidden":false,"merged":[[28,9,28,10]]}
[null,"Betong",null,null,null,null,null,null,"Asfalt"]
[null,"kg -> m3",2350,null,null,null,null,null,null,"Densitet"]
[null,"MJ/tkm",2.5,null,null,null,null,null,"Abb",112.15]
[null,"kg CO2e/l",2.8,null,null,null,null,null,"ABS",89.72]
[null,"l/MJ",2.8344999999999999E-2,null,null,null,null,null,"ABT",89.72]
[null,"kg -> ton",1E-3,null,null,null,null,null,"AG",134.58000000000001]
["för 1 km","Omräkning kg CO2/m3",null,{"$f":"(1*1*Standardvärden!C2*Standardvärden!C6*C3*C4*C5)","v":0.46627524999999997},null,null,null,null,"MJAG/MJOG",112.15]
["för 1 km","Summa transport kg CO2/m3",null,{"$f":"D7","v":0.46627524999999997},null,null,null,null,"ABb","Omräkning kg CO2/m3",null,null,{"$f":"(Standardvärden!K20*Standardvärden!$M$15*Standardvärden!$M$16*Standardvärden!$M$18)","v":1.335134535E-2},null,null,"för 1 km"]
[null,null,null,null,null,null,null,null,"ABS","Omräkning kg CO2/m3",null,null,{"$f":"(Standardvärden!K21*Standardvärden!$M$15*Standardvärden!$M$16*Standardvärden!$M$18)","v":1.0681076279999998E-2}]
[null,"Stål",null,null,null,null,null,null,"ABT","Omräkning kg CO2/m3",null,null,{"$f":"(Standardvärden!K22*Standardvärden!$M$15*Standardvärden!$M$16*Standardvärden!$M$18)","v":1.0681076279999998E-2}]
[null,"kg -> ton",1000,null,null,null,null,null,"AG","Omräkning kg CO2/m3",null,null,{"$f":"(Standardvärden!K23*Standardvärden!$M$15*Standardvärden!$M$16*Standardvärden!$M$18)","v":1.6021614419999997E-2}]
[null,"Lastbil Landsväg",null,300,null,null,null,null,"MJAG/MJOG","Omräkning kg CO2/m3",null,null,{"$f":"(Standardvärden!K24*Standardvärden!$M$15*Standardvärden!$M$16*Standardvärden!$M$18)","v":1.335134535E-2}]
[null,"Lastbil närdistr.",null,40,null,null,null,null,"Generellt","Omräkning kg CO2/m3",null,null,{"$f":"(Standardvärden!$M$15*Standardvärden!$M$16*Standardvärden!$M$18)","v":0.11904899999999997}]
[null,"Järnväg",null,500]
[null,"Omräkningar transport landsväg",null,null,null,null,null,null,null,null,null,"MJ/tkm",1.5]
[null,"MJ/tkm",1,null,null,null,null,null,null,null,null,"kg CO2e/l",2.8]
[null,"kg CO2e/l",2.8,null,null,null,null,null,null,null,null,"MJ/l",43.3]
[null,"MJ/l",43.3,null,null,null,null,null,"Inverterat värmevärde",null,null,"l/MJ",2.8344999999999999E-2]
[null,"Inverterat värmevärde",null,null,"l/MJ",2.8344999999999999E-2,null,null,null,"Omvandlingsfaktorer"]
[null,"Omräkning kg CO2/ton",null,null,{"$f":"(C16*C17*F19)","v":7.9365999999999992E-2},null,"för 1 km",null,"Abb","m2 -> ton",{"$f":"K26*Standardvärden!J3","v":0.11215000000000001}]
[null,"Omräkningar transport närdistr.",null,null,null,null,null,null,"ABS","m2 -> ton",{"$f":"K26*Standardvärden!J4","v":8.9719999999999994E-2}]
[null,"MJ/tkm",2.5,null,null,null,null,null,"ABT","m2 -> ton",{"$f":"K26*Standardvärden!J5","v":8.9719999999999994E-2}]
[null,"kg CO2e/l",2.8,null,null,null,null,null,"AG","m2 -> ton",{"$f":"K26*Standardvärden!J6","v":0.13458000000000001}]
[null,"MJ/l",43.3,null,null,null,null,null,"MJAG/MJOG","m2 -> ton",{"$f":"K26*Standardvärden!J7","v":0.11215000000000001}]
[null,"Inverterat värmevärde",null,null,"l/MJ",2.8344999999999999E-2,null,null,null,"ton -> kg",1000]
[null,"Omräkning kg CO2/ton",null,null,{"$f":"(C22*C23*F25)","v":0.19841499999999998},null,"för 1 km",null,null,"kg -> ton",1E-3]
[null,null,null,"Omräkningar transport järnväg"]
[null,null,null,"MJ -> Kwh",0.27777777999999997,null,null,null,"Plast"]
[null,null,"El","kg CO2e/kWh",1.2E-2,null,null,null,null,"Omvandlingsfaktorer"]
[null,"Bränsleförbrukning",null,"MJ/tkm",0.3,null,null,null,"Vikt dim 200",null,3.6,"kg/m"]
[null,"Summa transport kg CO2/ton",null,null,{"$f":"(E30*E29*Standardvärden!E28)","v":1.0000000079999998E-3},null,"för 1 km",null,"Vikt dim 225",null,19,"kg/m"]
[null,"Viktat medelvärde transport",null,null,{"$f":"E20*(Standardvärden!D12/SUM(Standardvärden!D12:D14))+E26*(Standardvärden!D13/SUM(Standardvärden!D12:D14))+E31*(Standardvärden!D14/SUM(Standardvärden!D12:D14))","v":3.8388571433333331E-2},null,"kg CO2/m3",null,null,"kg -> ton",1E-3]
[]
[null,"Anläggningssten",null,null,null,null,null,null,"Omräkningar transport landsväg"]
[null,"Omvandlingsfaktorer",null,null,null,null,null,null,null,"dim 200","dim 225"]
[null,"kg -> m3",2719,null,null,null,null,null,"MJ/tkm",1,1]
[null,"kg -> ton",1E-3,null,null,null,null,null,"kg CO2e/l",2.8,2.8]
[null,null,null,null,"Omräkningar transport landsväg",null,null,null,"MJ/l",43.3,43.3]
[null,null,null,null,"MJ/tkm",1,null,null,"Inverterat värmevärde",null,null,"l/MJ",2.8344999999999999E-2,2.8344999999999999E-2]
[null,null,null,null,"kg CO2e/l",2.8]
[null,null,null,null,"MJ/l",43.3,null,null,"Omräkning kg CO2/m3",null,null,null,{"$f":"(1*1*Standardvärden!K30*Standardvärden!K32*J36*J37*M39)","v":2.8571759999999999E-4},{"$f":"(1*1*Standardvärden!K31*Standardvärden!K32*K36*K37*N39)","v":1.5079539999999999E-3}]
[null,"Inverterat värmevärde",null,null,"l/MJ",2.8344999999999999E-2,null,null,"Omräkningar transport närdistr."]
[null,null,null,null,null,null,null,null,null,"dim 200","dim 225"]
[null,"Omräkning kg CO2/m3",null,null,{"$f":"(Standardvärden!C36*Standardvärden!C37*F39*F40*F42)","v":0.21579615399999996},null,"för 1 km",null,"MJ/tkm",2.5,2.5]
[null,null,null,null,"Omräkningar transport närdistr.",null,null,null,"kg CO2e/l",2.8,2.8]
[null,null,null,null,"MJ/tkm",2.5,null,null,"MJ/l",43.3,43.3]
[null,null,null,null,"kg CO2e/l",2.8,null,null,"Inverterat värmevärde",null,null,"l/MJ",2.8344999999999999E-2,2.8344999999999999E-2]
[null,null,null,null,"MJ/l",43.3]
[null,"Inverterat värmevärde",null,null,"l/MJ",2.8344999999999999E-2,null,null,"Omräkning kg CO2/m3",null,null,null,{"$f":"(1*1*Standardvärden!K30*Standardvärden!K32*J44*J45*M47)","v":7.1429399999999997E-4},{"$f":"(1*1*Standardvärden!K31*Standardvärden!K32*K44*K45*N47)","v":3.7698849999999993E-3}]
[null,null,null,null,null,null,null,null,"Viktat medelvärde transport kg CO2/m",null,null,null,null,{"$f":"M41*(Standardvärden!K53/SUM(Standardvärden!K53:K54))+M49*(Standardvärden!K54/SUM(Standardvärden!K53:K54))","v":3.1746399999999999E-4},{"$f":"N41*(Standardvärden!K53/SUM(Standardvärden!K53:K54))+N49*(Standardvärden!K54/SUM(Standardvärden!K53:K54))","v":1.6755044444444443E-3},"för 1 km"]
[null,"Omräkning kg CO2/m3",null,null,{"$f":"(Standardvärden!C36*Standardvärden!C37*F46*F47*F49)","v":0.53949038499999991},null,"för 1 km",null,null,"Transportparametrar"]
[null,null,null,null,null,null,null,null,null,null,"km"]
[null,"Viktat medelvärde transport",null,null,{"$f":"E44*(400/440)+E51*(40/440)","v":0.24522290227272725},null,"kg CO2/m3",null,"Lastbil Landsväg",null,500]
[null,null,null,null,null,null,null,null,"Lastbil närdistr.",null,40]